Cogmind - Beta 12 *** ADVENTURER MODE // 2023.07.03 @ 11:50:28 Player: Puck Result: Destroyed by Striker with Compact Linear Accelerator Performance ------------- Evolutions (7) 3500 Regions Visited (28) 5600 Robots Destroyed (397) 1985 Value Destroyed (17880) 17880 Prototype IDs (58) 1160 Alien Tech Used (6) 1200 Bonus (22374) 22374 TOTAL SCORE: 53699 Bonus ------- Triggered Max Security 1000 High Alert Combat Kills 3032 Follower Combat Kills 5404 Entered Garrisons 200 Network Hubs Disabled 400 Met Data Miner 300 Met Zhirov 300 Met R17 at Cetus 500 Found Hidden Lab 3000 Used Core Reset Matrix 3000 Pursued by Intercept 500 Met Sigix 2000 Activated Exoskeleton 3000 Friendly Fire -262 Cogmind --------- Core Integrity 0/1300 Matter 300/300 Energy 99/100 System Corruption 45% Temperature Cool (0) Movement Core (50) Location -3/Section 7 Parts ------- > --- POWER (2) -------- (None) > --- PROPULSION (8) --- (None) > --- UTILITY (9) ------ (None) > --- WEAPON (2) ------- (None) > --- INVENTORY (5) ---- Subatomic Replicator Peak State ------------ > --- POWER ------------ Light Antimatter Reactor > --- PROPULSION ------- Combat Gravmag System Biomechanical Wings Cooled Nuclear Pulse Thruster Nuclear Pulse Array Impulse Thruster Impulse Thruster Impulse Thruster > --- UTILITY ---------- Advanced Coolant Injector Large Storage Unit Advanced Energy Well Enhanced Optical Array Experimental Signal Interpreter Improved Targeting Computer Armor Integrity Analyzer Improved Phase Shifter Quantum Router > --- WEAPON ----------- Sigix Broadsword > --- INVENTORY -------- Particle Reactor Combat Gravmag System Combat Gravmag System Advanced Matter Compressor Heavy Regenerative Plating Transdimensional Reconstructor Transdimensional Reconstructor Transdimensional Reconstructor Core Regenerator Subatomic Replicator Smartbomb Launcher Sigix Containment Pod [Rating: 154] Favorites ----------- Power Improved Deuterium Engine Engine Improved Deuterium Engine Power Core Enhanced Fission Core Reactor Light Antimatter Reactor Propulsion Flexi-carbon Leg Treads Advanced Treads Leg Flexi-carbon Leg Wheel Armored Wheel Hover Unit Combat Gravmag System Flight Unit Impulse Thruster Utility High-capacity Storage Unit Device Experimental Cooling System Storage High-capacity Storage Unit Processor Experimental Signal Interpreter Hackware Quantum Router Protection Improved Medium Armor Plating Weapon Improved Heavy Machine Gun Energy Gun Advanced Variable Charge Gun Energy Cannon Ion Burst Cannon Ballistic Gun Improved Heavy Machine Gun Ballistic Cannon Improved Light Cannon Launcher Long-range Missile Launcher Special Weapon Guided Remote Datajack Impact Weapon Shock Maul Slashing Weapon Sigix Broadsword Build | -11 -10 -10 -9 -9 -9 -7 -7 -7 -7 -7 -7 -6 -6 -6 -6 -6 -6 -5 -5 -5 -5 -4 -4 -4 -4 -3 -3 -3 ------- Run | Jun Mat Min Mat Sto Rec Fac Gar Fac Low Low Dat Pro Fac Ext Cet Arc Hub Fac Upp Upp Zhi Pro Fac Arm Lab Res Qua Sec Slots Evolved 14 | . . . 2 . . 4 . . . . . . 2 . . . . 2 . . . . 2 . . 2 . . Power 1 | . . . . . . . . . . . . . . . . . . 1 . . . . . . . . . . Propulsion 6 | . . . 1 . . 1 . . . . . . 1 . . . . 1 . . . . . . . 2 . . Utility 7 | . . . 1 . . 3 . . . . . . 1 . . . . . . . . . 2 . . . . . Weapon . | . . . . . . . . . . . . . . . . . . . . . . . . . . . . . Parts Attached 437 | . 30 5 18 22 . 45 2 19 . . 2 4 22 9 10 5 25 50 7 2 4 7 88 . 6 5 6 44 Power 32 | . 2 1 4 1 . 1 . . . . . . 1 . 1 . 1 6 . . 1 . 9 . 1 1 . 2 Engine 9 | . 2 1 4 1 . 1 . . . . . . . . . . . . . . . . . . . . . . Core 10 | . . . . . . . . . . . . . . . . . . 6 . . . . 4 . . . . . Reactor 13 | . . . . . . . . . . . . . 1 . 1 . 1 . . . 1 . 5 . 1 1 . 2 Propulsion 105 | . 7 . 1 2 . 8 . 8 . . . . 7 1 4 . 9 9 . . . 2 26 . . 1 3 17 Treads 9 | . . . . . . 7 . 2 . . . . . . . . . . . . . . . . . . . . Leg 63 | . 5 . . . . . . 6 . . . . 7 1 4 . 9 6 . . . . 10 . . . . 15 Wheel 12 | . 2 . 1 2 . 1 . . . . . . . . . . . 3 . . . 2 1 . . . . . Hover 11 | . . . . . . . . . . . . . . . . . . . . . . . 7 . . . 3 1 Flight 10 | . . . . . . . . . . . . . . . . . . . . . . . 8 . . 1 . 1 Utility 162 | . 8 . 12 6 . 22 2 11 . . . 1 11 6 1 4 4 19 3 . 1 2 27 . 3 3 1 15 Device 83 | . 3 . 5 3 . 12 2 2 . . . 1 6 1 . 4 2 12 3 . 1 1 18 . 1 2 . 4 Storage 12 | . 5 . 1 . . . . . . . . . . . . . . 1 . . . . 2 . . 1 1 1 Processor 19 | . . . 1 . . 1 . 1 . . . . . 1 . . . 4 . . . . 4 . . . . 7 Hackware 10 | . . . . . . 3 . 6 . . . . . . . . . . . . . . . . 1 . . . Protection 38 | . . . 5 3 . 6 . 2 . . . . 5 4 1 . 2 2 . . . 1 3 . 1 . . 3 Artifact . | . . . . . . . . . . . . . . . . . . . . . . . . . . . . . Weapon 138 | . 13 4 1 13 . 14 . . . . 2 3 3 2 4 1 11 16 4 2 2 3 26 . 2 . 2 10 Energy Gun 15 | . . . . 1 . 1 . . . . . . . . 1 . . 2 . . . 1 7 . 1 . . 1 Energy Cannon 7 | . 1 . . . . 2 . . . . . 2 1 1 . . . . . . . . . . . . . . Ballistic Gun 55 | . 5 . . 5 . 7 . . . . 2 1 1 . . . 6 10 3 1 2 1 5 . . . . 6 Ballistic Cannon 30 | . 6 2 1 5 . 2 . . . . . . . . 2 1 3 . . . . . 8 . . . . . Launcher 17 | . 1 2 . 2 . 1 . . . . . . . . 1 . 1 1 1 1 . 1 4 . . . 1 . Special Weapon 1 | . . . . . . . . . . . . . . . . . . . . . . . . . 1 . . . Impact Weapon 9 | . . . . . . 1 . . . . . . 1 1 . . 1 3 . . . . 2 . . . . . Slashing Weapon 4 | . . . . . . . . . . . . . . . . . . . . . . . . . . . 1 3 Piercing Weapon . | . . . . . . . . . . . . . . . . . . . . . . . . . . . . . Special Melee Weapon . | . . . . . . . . . . . . . . . . . . . . . . . . . . . . . Unidentified Prototypes 38 | . 1 . 2 1 . 6 . . . . . . . . 2 . 1 3 . . 2 . 7 1 5 . . 7 Parts Lost 124 | . 1 . 1 1 . 5 1 1 . . . 2 . . 3 3 14 14 1 . . 3 30 . . . 10 34 Power 13 | . . . . . . 1 . . . . . . . . . . 1 2 . . . . 6 . . . 1 2 Propulsion 49 | . . . . . . 2 . 1 . . . . . . 2 . 6 7 . . . 2 9 . . . 6 14 Utility 40 | . . . . . . 2 1 . . . . 1 . . . 2 4 4 . . . 1 9 . . . 2 14 Weapon 22 | . 1 . 1 1 . . . . . . . 1 . . 1 1 3 1 1 . . . 6 . . . 1 4 Highest Loss Streak 16 | . 1 . 1 1 . 2 1 1 . . . 2 . . 3 3 8 6 1 . . 2 12 . . . 9 16 To Critical Strikes 6 | . . . . . . . . . . . . . . . . . . . . . . 1 2 . . . . 3 Average Slot Usage (%) 88 | . 97 100 99 100 100 90 89 92 100 100 85 99 100 100 98 98 87 72 79 82 70 81 81 . 74 76 76 52 Engine 4 | . 14 14 10 11 11 6 7 7 7 7 7 7 1 . . . . . . . . . . . . . . . Core 1 | . . . . . . . . . . . . . . . . . . 4 11 11 8 5 2 . . . . . Reactor 2 | . . . . . . . . . . . . . 4 6 6 6 5 2 . . 1 5 6 . 5 4 3 2 Treads 2 | . . . . . . 12 23 17 . . . . . . . . . . . . . . . . . . . . Leg 12 | . 27 . . . . . . 8 30 30 30 30 33 33 31 33 28 10 . . . . 11 . . . . 13 Wheel 8 | . . 28 33 33 33 11 . . . . . . . . . . . 6 17 17 17 16 6 . . . . . Device 11 | . 11 14 2 1 . 12 20 11 15 15 15 19 23 10 6 10 9 7 11 17 17 15 15 . 10 10 6 5 Storage 7 | . 14 14 11 11 11 7 7 7 7 7 7 7 6 6 6 6 6 5 5 5 5 5 5 . 5 4 5 . Processor 12 | . . . 11 11 11 11 15 15 15 15 15 10 6 6 13 13 13 16 17 17 17 17 17 . 21 19 19 19 Protection 6 | . . . 8 9 11 9 . 6 7 7 7 7 8 21 20 13 9 3 2 . . . 3 . . . . 1 Energy Cannon 1 | . . . . . . 1 . . . . . 5 11 12 7 1 . . . . . . . . . . . . Ballistic Gun 6 | . 11 . . 11 . 6 15 15 15 15 1 8 1 . . . 4 10 10 10 . 9 2 . . . . 3 Ballistic Cannon 5 | . 16 27 22 10 22 6 . . . . . . . . 2 11 7 . . . . . 2 . . . . . Naked Turns 27 | . . . . . . . . . . . . . . . . . . . . . . . . . . . . 27 Heaviest Build 125 | 13 31 31 59 63 63 77 67 70 67 67 67 76 100 124 125 125 107 90 89 75 79 96 106 38 38 41 45 39 Greatest Support 180 | 20 30 30 42 36 36 119 119 119 72 72 72 72 98 98 98 90 95 95 84 84 84 84 90 43 43 46 49 180 Greatest Overweight (x) 6 | . 1 1 1 1 1 4 . 1 . . . 1 1 1 2 1 1 1 1 . . 2 6 . . . 6 6 Average Overweight (x) . | . . . . 1 1 1 . . . . . . . . 1 1 . . . . . . 1 . . . . . Largest Inventory Capacity 25 | 8 15 15 20 20 20 20 20 20 20 20 20 20 20 20 20 20 20 20 20 20 20 20 20 15 15 25 15 15 Average Capacity 18 | 8 14 15 16 20 20 20 20 20 20 20 20 20 20 20 20 20 20 20 20 20 20 20 19 15 15 15 15 6 Most Carried 20 | 6 15 15 20 20 20 20 20 20 20 20 20 20 20 20 20 20 20 20 20 20 20 20 20 14 15 15 15 10 Average Carried 17 | 5 13 14 15 19 19 19 19 18 19 20 20 18 19 19 19 19 19 18 18 19 19 19 18 14 14 14 13 4 Final Capacity 20 | 8 15 15 20 20 20 20 20 20 20 20 20 20 20 20 20 20 20 20 20 20 20 20 15 15 15 15 15 5 Final Carried 20 | 4 15 15 20 20 20 20 20 20 20 20 20 18 20 20 20 20 13 20 18 20 20 17 15 14 15 15 10 1 Class Distribution -------------------- 39% | Mutant 27% | Scavenger-Mutant 8% | Commander-Mutant 8% | Scavenger-Skirmisher 6% | Skirmisher 5% | Commander-Skirmisher Dominant Class ---------------- Mutant | -10/Materials Mutant | -10/Mines Mutant | -9/Materials Mutant | -9/Storage Mutant | -9/Recycling Mutant | -7/Factory Mutant | -7/Garrison Commander-Mutant | -7/Factory Commander-Skirmisher | -7/Lower Caves Commander-Skirmisher | -7/Lower Caves Commander-Mutant | -7/Data Miner Mutant | -6/Proximity Caves Scavenger-Mutant | -6/Factory Scavenger-Mutant | -6/Extension Scavenger-Mutant | -6/Cetus Scavenger-Mutant | -6/Archives Scavenger-Mutant | -6/Hub_04(d) Scavenger-Skirmisher | -5/Factory Skirmisher | -5/Upper Caves Skirmisher | -5/Upper Caves Mutant | -5/Zhirov Skirmisher | -4/Proximity Caves Scavenger-Skirmisher | -4/Factory Scavenger-Skirmisher | -4/Armory Scavenger-Skirmisher | -4/Lab Scavenger-Skirmisher | -3/Research Hacker-Sprinter | -3/Quarantine Scavenger-Mutant | -3/Section 7 Resources | -11 -10 -10 -9 -9 -9 -7 -7 -7 -7 -7 -7 -6 -6 -6 -6 -6 -6 -5 -5 -5 -5 -4 -4 -4 -4 -3 -3 -3 ----------- Run | Jun Mat Min Mat Sto Rec Fac Gar Fac Low Low Dat Pro Fac Ext Cet Arc Hub Fac Upp Upp Zhi Pro Fac Arm Lab Res Qua Sec Matter Collected 11884 | 200 466 206 1047 952 141 1263 135 284 68 40 . 76 296 98 227 210 764 1223 691 56 . 295 2092 . . . 198 856 Remotely 2122 | . . . 568 610 . 374 . . . . . . . . . 138 110 . . . . . 322 . . . . . Salvage Created 16477 | . 595 69 1118 1399 225 1657 207 236 60 116 . 123 467 1050 204 256 1270 1609 542 . . 416 2603 . . . 35 2220 Parts 690 | . 37 1 78 78 9 56 9 10 5 6 . . 16 31 6 8 37 78 27 . . 20 81 . . . . 97 Haulers Intercepted 18 | . 2 . 4 5 . 2 . 2 . . . . . . . . . . . . . . 3 . . . . . Recyclers Shooed 12 | . . . 1 1 . 4 . . . . . . 2 2 . . . 2 . . . . . . . . . . Parts Field Recycled . | . . . . . . . . . . . . . . . . . . . . . . . . . . . . . Retrieved Matter . | . . . . . . . . . . . . . . . . . . . . . . . . . . . . . Parts Self-Destructed 78 | . . . . . . . . . 7 8 . 20 . . . . . . 25 . . 18 . . . . . . Prevented . | . . . . . . . . . . . . . . . . . . . . . . . . . . . . . Kills | -11 -10 -10 -9 -9 -9 -7 -7 -7 -7 -7 -7 -6 -6 -6 -6 -6 -6 -5 -5 -5 -5 -4 -4 -4 -4 -3 -3 -3 ------- Run | Jun Mat Min Mat Sto Rec Fac Gar Fac Low Low Dat Pro Fac Ext Cet Arc Hub Fac Upp Upp Zhi Pro Fac Arm Lab Res Qua Sec Combat Hostiles Destroyed 314 | . 14 9 29 28 4 31 7 1 3 2 . 2 4 15 7 4 22 22 11 . . 9 57 . . . . 33 Melee 5 | . . . . . . . . . . . . . . . . . 1 . . . . . . . . . . 4 Guns 136 | . 5 . . 8 . 19 7 1 3 2 . 1 . . . . 5 18 8 . . 5 25 . . . . 29 Cannons 121 | . 6 5 29 14 4 8 . . . . . 1 4 15 4 4 14 . . . . . 13 . . . . . AOE 47 | . 3 4 . 6 . 4 . . . . . . . . 3 . 1 3 3 . . 4 16 . . . . . Classes Destroyed 22 | . 6 1 2 5 1 4 . . . . . 1 . . . . 1 . . . . . . . . . . 1 Worker 8 | . . . . 1 . 2 . . . . . . . . . . 2 3 . . . . . . . . . . Builder 11 | . 1 . 1 1 . 3 . . . . . . . . . . . 2 . . . . 3 . . . . . Tunneler 2 | . . . . . . 1 . . . . . . . . . . 1 . . . . . . . . . . . Hauler 18 | . 2 . 4 5 . 2 . 2 . . . . . . . . . . . . . . 3 . . . . . Recycler 19 | . 1 . 3 3 1 5 . 1 . . . . 2 2 . . . 1 . . . . . . . . . . Mechanic 3 | . . . . 1 . 1 . . . . . . . . . . . 1 . . . . . . . . . . Operator 4 | . . . 2 1 . . . . . . . . . . . . 1 . . . . . . . . . . . Watcher 24 | . 3 . 4 2 . 2 . 1 . . . . 1 2 2 . . 3 . . . . 3 . . . 1 . Swarmer 46 | . 6 . 8 4 . 2 4 . 3 . . . . . . . . . 3 . . 5 11 . . . . . Saboteur 8 | . . . . . . . . . . . . . . . . . 1 . . . . . . . . . . 7 Grunt 125 | . 8 2 13 11 1 16 3 . . 1 . 1 2 9 1 . 17 6 5 . . . 21 . . . . 8 Brawler 11 | . . . . 2 . . . . . 1 . . . . . . 1 . . . . . . . . . . 7 Duelist 9 | . . . . 1 . 2 . . . . . . . 1 . . . 1 . . . . . . . . . 4 Protector 6 | . . . . 2 . 1 . . . . . . . . . . . . . . . . 1 . . . . 2 Sentry 41 | . . . 8 8 2 3 . 1 . . . . . 5 . 4 1 4 1 . . 1 3 . . . . . Specialist 2 | . . . . . . 2 . . . . . . . . . . . . . . . . . . . . . . Hunter 26 | . . . . . . 1 . . . . . 1 2 . 1 . . 5 1 . . 2 12 . . . . 1 Programmer 23 | . . . . . 1 3 . . . . . . . . 1 . . 6 . . . . 9 . . . . 3 Heavy 1 | . . . . . . 1 . . . . . . . . . . . . . . . . . . . . . . Behemoth 3 | . . . . . . . . . . . . 1 . . . . . . 1 . . 1 . . . . . . Cetus Guard 4 | . . . . . . . . . . . . . . . 4 . . . . . . . . . . . . . Lightning 2 | . . . . . . . . . . . . . . . . . 2 . . . . . . . . . . . Striker 1 | . . . . . . . . . . . . . . . . . . . . . . . . . . . . 1 Assembled 7 | . . 7 . . . . . . . . . . . . . . . . . . . . . . . . . . Best Kill Streak 14 | . 6 7 6 11 3 9 4 1 3 2 . 1 4 3 5 4 6 7 5 . . 5 8 . . . 1 14 Combat Bots Only 14 | . 5 7 4 10 3 8 4 1 3 2 . 1 2 3 4 4 5 5 5 . . 5 8 . . . . 14 Max Kills in Single Turn 4 | . 2 3 1 4 2 3 2 1 1 1 . 1 1 1 2 1 2 2 3 . . 4 4 . . . 1 1 Gunslinging 1 | . . . . . . 1 1 . . . . . . . . . . 1 1 . . . . . . . . . Exploded 4 | . 2 3 . 4 . 2 . . . . . . . . 1 . 1 1 3 . . 4 4 . . . . . Melee 1 | . . . . . . . . . . . . . . . . . 1 . . . . . . . . . . 1 Uniques/NPCs Destroyed . | . . . . . . . . . . . . . . . . . . . . . . . . . . . . . Combat | -11 -10 -10 -9 -9 -9 -7 -7 -7 -7 -7 -7 -6 -6 -6 -6 -6 -6 -5 -5 -5 -5 -4 -4 -4 -4 -3 -3 -3 -------- Run | Jun Mat Min Mat Sto Rec Fac Gar Fac Low Low Dat Pro Fac Ext Cet Arc Hub Fac Upp Upp Zhi Pro Fac Arm Lab Res Qua Sec Damage Taken 24669 | . 351 77 512 545 27 1930 288 188 53 . . 373 414 803 672 220 2587 2280 1063 . . 742 5237 . . 56 1508 4743 Core 3460 | . 32 50 30 34 . 178 26 18 . . . 54 17 60 36 30 408 238 133 . . 62 703 . . . 388 963 Absorbed by Shields 1708 | . . . . . 9 287 21 . . . . . . 40 . . . . . . . 150 1191 . . . . 10 Redirected to Shielding 49 | . . . . . . . . . . . . . . . . . . 49 . . . . . . . . . . Regen/Repaired (Parts) 511 | . . . . . . 75 . . . . . . . . . . . . . . . . . . . . 175 261 Core Remaining (%) 62 | 100 . 67 . . 84 . . . . . . 60 . . . . 35 . . . . 56 . . 36 . . . Volleys Fired 982 | . 40 12 73 80 6 104 13 13 6 2 . 17 15 60 21 19 81 79 37 . . 24 199 . . . 1 80 Largest 2 | . 2 2 2 2 2 2 2 2 2 2 . 2 2 2 2 2 2 2 2 . . 2 2 . . . 1 2 Hottest 321 | . 70 78 78 78 78 200 30 30 30 30 . 200 200 200 200 157 114 321 76 . . 273 240 . . . 46 76 Shots Fired 1842 | . 78 24 146 156 12 206 26 26 12 4 . 31 29 114 40 34 148 155 74 . . 47 344 . . . 1 135 Gun 1032 | . 44 . . 68 . 114 26 26 12 4 . 26 7 . 4 . 73 152 73 . . 46 222 . . . . 135 Cannon 774 | . 32 20 146 82 12 89 . . . . . 5 22 114 29 34 74 . . . . . 115 . . . . . Launcher 36 | . 2 4 . 6 . 3 . . . . . . . . 7 . 1 3 1 . . 1 7 . . . 1 . Special . | . . . . . . . . . . . . . . . . . . . . . . . . . . . . . Kinetic 1410 | . 76 20 146 150 12 178 26 26 12 4 . 26 7 . 2 27 147 129 73 . . 28 186 . . . . 135 Thermal 396 | . . . . . . 25 . . . . . 5 22 114 31 7 . 23 . . . 18 151 . . . . . Explosive 36 | . 2 4 . 6 . 3 . . . . . . . . 7 . 1 3 1 . . 1 7 . . . 1 . Electromagnetic . | . . . . . . . . . . . . . . . . . . . . . . . . . . . . . Robot Hit Streak 40 | . 8 9 40 22 10 22 15 10 2 3 . 11 8 13 11 12 7 14 30 . . 21 31 . . . 10 34 Robot Miss Streak 8 | . 3 1 2 2 2 4 2 1 2 1 . 3 6 7 8 2 7 2 2 . . 2 4 . . . . 1 Penetration Max 2 | . . . . . . . . . . . . . . . . 1 2 1 . . . . 1 . . . . 2 Secondary Targets 30 | . 2 . . . . 7 4 . . . . . . . . . . 1 1 . . . 1 . . . . 14 Max Gunslinging Chain 1 | . 1 . . . . 1 1 . . . . . . . . . . 1 1 . . . 1 . . . . 1 Capacitor 15 | . . . . . . . . . . . . . . . . . . . . . . . 15 . . . . . Shots Hit Robots 1457 | . 45 19 113 120 7 167 19 20 5 3 . 24 21 91 35 29 92 128 66 . . 38 279 . . . 2 134 Core Hits 783 | . 28 16 45 54 4 81 10 7 3 2 . 5 21 66 36 8 40 63 23 . . 20 159 . . . . 92 Critical Kills 34 | . 1 . . . . . . . . . . . . . . 4 16 4 3 . . . 3 . . . . 3 Critical Parts Destroyed 41 | . . . . 1 . 1 . . . . . 1 . . 1 5 21 5 2 . . 1 . . . . . 3 Critical Strikes 105 | . 2 . 5 6 2 3 . . . . . 1 . . 1 11 37 9 6 . . 1 14 . . . . 7 Burn 2 | . . . . . . . . . . . . . . . . . . . . . . . 2 . . . . . Destroy 79 | . 1 . . 1 . 1 . . . . . 1 . . 1 11 37 9 6 . . 1 3 . . . . 7 Blast 24 | . 1 . 5 5 2 2 . . . . . . . . . . . . . . . . 9 . . . . . Melee Attacks 41 | . . . . . . . . . . . . . 1 2 . . 1 11 . . . . 2 . 4 . 8 12 Impact 27 | . . . . . . . . . . . . . 1 2 . . 1 11 . . . . 2 . 4 . 6 . Slashing 14 | . . . . . . . . . . . . . . . . . . . . . . . . . . . 2 12 Piercing . | . . . . . . . . . . . . . . . . . . . . . . . . . . . . . Sneak Attacks . | . . . . . . . . . . . . . . . . . . . . . . . . . . . . . Combat Hostiles . | . . . . . . . . . . . . . . . . . . . . . . . . . . . . . Follow-up Attacks . | . . . . . . . . . . . . . . . . . . . . . . . . . . . . . Damage Inflicted 47084 | . 834 529 2525 2675 224 5427 494 498 142 64 . 648 868 3938 1744 607 2560 4383 1721 . . 1304 10891 . . . 105 4903 Guns 22200 | . 295 . . 846 . 2429 494 498 142 64 . 465 81 . 81 . 1081 3309 1526 . . 1084 5508 . . . . 4297 Cannons 17553 | . 360 330 2525 1442 224 2264 . . . . . 183 774 3920 982 607 962 . . . . . 2980 . . . . . Explosions 6124 | . 175 199 . 387 . 734 . . . . . . . . 681 . 517 668 195 . . 220 2298 . . . 50 . Melee 1148 | . . . . . . . . . . . . . . . . . . 406 . . . . 86 . . . 55 601 Ramming 59 | . 4 . . . . . . . . . . . 13 18 . . . . . . . . 19 . . . . 5 Kinetic 27592 | . 655 330 2525 2288 224 3836 494 498 142 64 . 465 81 . 34 461 2043 2764 1526 . . 452 4413 . . . . 4297 Thermal 12161 | . . . . . . 857 . . . . . 183 774 3920 1029 146 . 545 . . . 632 4075 . . . . . Explosive 5607 | . 175 199 . 387 . 734 . . . . . . . . 681 . . 668 195 . . 220 2298 . . . 50 . Electromagnetic 517 | . . . . . . . . . . . . . . . . . 517 . . . . . . . . . . . Impact 547 | . . . . . . . . . . . . . . . . . . 406 . . . . 86 . . . 55 . Slashing 601 | . . . . . . . . . . . . . . . . . . . . . . . . . . . . 601 Piercing . | . . . . . . . . . . . . . . . . . . . . . . . . . . . . . Highest Corruption 45 | . . . . . . . . 1 1 1 1 1 . . . . 14 6 1 1 1 1 8 8 8 . 8 45 Average Corruption 3 | . . . . . . . . 1 1 1 1 1 . . . . 4 3 1 1 1 1 5 8 8 . 5 12 Corruption Purged 9 | . . . . . . . . . . . . . . . . . . 9 . . . . . . . . . . Corruption Blocked . | . . . . . . . . . . . . . . . . . . . . . . . . . . . . . Effects 165 | . . . . . . . . 6 2 4 1 . . . . . 17 20 3 3 1 5 66 . . . 1 36 Message Errors 34 | . . . . . . . . . 1 . . . . . . . 3 7 . 2 1 . 13 . . . . 7 Matter Fused 46 | . . . . . . . . 2 . 3 . . . . . . 5 6 1 . . 1 21 . . . 1 6 Heat Flow Errors 19 | . . . . . . . . 1 . . . . . . . . 1 1 . . . 2 8 . . . . 6 Energy Discharges 21 | . . . . . . . . 1 1 1 . . . . . . 3 3 1 . . 2 6 . . . . 3 Parts Rejected 3 | . . . . . . . . . . . . . . . . . 2 . . . . . 1 . . . . . Data Loss (minor) 17 | . . . . . . . . 1 . . . . . . . . 1 1 . 1 . . 7 . . . . 6 Data Loss (major) 8 | . . . . . . . . 1 . . 1 . . . . . . . . . . . 5 . . . . 1 Misfires 4 | . . . . . . . . . . . . . . . . . . . . . . . 2 . . . . 2 Alerts 4 | . . . . . . . . . . . . . . . . . . . 1 . . . 1 . . . . 2 Weapon Failures 9 | . . . . . . . . . . . . . . . . . 2 2 . . . . 2 . . . . 3 Overload Shots 14 | . . . . . . . . . . . . . . . . . . 4 . . . 7 3 . . . . . Overflow Damage 748 | . . 2 36 42 4 115 . . . . . . . 23 6 8 59 59 10 . . 45 219 . . . 31 89 Projectiles 317 | . . 2 36 42 4 115 . . . . . . . 23 6 8 . . . . . . 81 . . . . . Explosions 236 | . . . . . . . . . . . . . . . . . 59 . 10 . . 45 122 . . . . . Melee 195 | . . . . . . . . . . . . . . . . . . 59 . . . . 16 . . . 31 89 Knockbacks 99 | . 1 2 18 7 2 14 . . . . . . . . . . 16 . . . . . 39 . . . . . Impact . | . . . . . . . . . . . . . . . . . . . . . . . . . . . . . Kinetic 88 | . 1 2 16 6 1 12 . . . . . . . . . . 14 . . . . . 36 . . . . . Secondary 11 | . . . 2 1 1 2 . . . . . . . . . . 2 . . . . . 3 . . . . . Self-Inflicted Damage 285 | . . . . . . 57 . . . . . . . . . . 154 . . . . . 72 . . . . 2 Shots 7 | . . . . . . 2 . . . . . . . . . . 2 . . . . . 3 . . . . . Rammed 1 | . . . . . . . . . . . . . . . . . . . . . . . . . . . . 1 Targets Rammed 6 | . 1 . . . . . . . . . . . 2 1 . . . . . . . . 1 . . . . 1 Kicked 5 | . 1 . . . . . . . . . . . 2 1 . . . . . . . . 1 . . . . . Crushed . | . . . . . . . . . . . . . . . . . . . . . . . . . . . . . Highest Temperature 590 | . 111 108 237 243 24 235 . 109 . . . 137 198 296 54 301 144 590 226 . . 407 326 . 26 . . 242 Average Temperature 69 | . 42 38 36 68 9 73 . 77 . . . 55 67 41 20 96 59 99 93 . . 174 83 . 12 . . 78 Received Heat Transfer 5757 | . 141 74 231 387 . 734 108 48 . . . 69 54 388 135 45 816 270 262 . . 39 1097 . . . . 859 Effects 9 | . . . . 3 . . . . . . . . . . . 1 . 3 . . . . 2 . . . . . Shutdowns 3 | . . . . . . . . . . . . . . . . . . 1 . . . . 2 . . . . . Energy Bleed 1 | . . . . . . . . . . . . . . . . 1 . . . . . . . . . . . . Interference 5 | . . . . 3 . . . . . . . . . . . . . 2 . . . . . . . . . . Siege Activations . | . . . . . . . . . . . . . . . . . . . . . . . . . . . . . Robots Corrupted 1 | . . . . . . . . . . . . . . . . . 1 . . . . . . . . . . . Combat Hostiles 1 | . . . . . . . . . . . . . . . . . 1 . . . . . . . . . . . Parts Fried 8 | . . . . . . . . . . . . . . . . . 2 . . . . . 4 . . . 2 . Impact Corruptions 7 | . . . . . . 1 . . . . . . . . . . . 3 . . . . 2 . . . 1 . Robots Melted 3 | . . . . . . . . . . . . . . . . . . . . . . . 3 . . . . . Combat Hostiles 3 | . . . . . . . . . . . . . . . . . . . . . . . 3 . . . . . Parts Melted 22 | . . . . . . 4 . . . . . . . 5 2 . . 3 . . . 2 6 . . . . . Heat Transferred 15177 | . . . . . . 1020 . . . . . 200 925 4575 1211 175 . 718 . . . 670 5683 . . . . . Parts Sabotaged 5 | . . . . . . . . . . . . . . . . . 4 . . . . . . . . . . 1 Parts Stolen . | . . . . . . . . . . . . . . . . . . . . . . . . . . . . . Parts Stripped . | . . . . . . . . . . . . . . . . . . . . . . . . . . . . . Power Chain Reactions . | . . . . . . . . . . . . . . . . . . . . . . . . . . . . . Missiles Intercepted . | . . . . . . . . . . . . . . . . . . . . . . . . . . . . . Alert | -11 -10 -10 -9 -9 -9 -7 -7 -7 -7 -7 -7 -6 -6 -6 -6 -6 -6 -5 -5 -5 -5 -4 -4 -4 -4 -3 -3 -3 ------- Run | Jun Mat Min Mat Sto Rec Fac Gar Fac Low Low Dat Pro Fac Ext Cet Arc Hub Fac Upp Upp Zhi Pro Fac Arm Lab Res Qua Sec Peak Influence 3596 | . 211 102 428 971 359 862 634 537 . . . . 285 400 240 128 772 353 . . . . 560 101 . 41 321 3596 Initial 429 | . . 33 33 112 320 228 429 287 . . . . . 35 99 50 37 325 . . . . 33 101 . . 19 132 Average 327 | . 83 55 227 646 129 470 554 204 . . . . 143 201 180 107 453 252 . . . . 229 101 . 16 168 1817 Maximum Alert Level 5 | . 1 . 2 3 1 3 2 2 . . . . 1 2 1 . 3 1 . . . . 2 . . . 1 5 Low Security (%) 42 | 100 79 100 39 6 71 9 . 42 . . . . 77 52 50 100 6 32 . . . . 45 100 . 100 42 27 Level 1 37 | . 20 . 58 9 28 32 . 49 . . . . 22 45 49 . 13 67 . . . . 41 . . . 57 5 Level 2 13 | . . . 2 41 . 35 100 7 . . . . . 1 . . 75 . . . . . 12 . . . . . Level 3 4 | . . . . 41 . 22 . . . . . . . . . . 3 . . . . . . . . . . . Level 4 . | . . . . . . . . . . . . . . . . . . . . . . . . . . . . . Level 5 . | . . . . . . . . . . . . . . . . . . . . . . . . . . . . . High Security . | . . . . . . . . . . . . . . . . . . . . . . . . . . . . . Max Security 2 | . . . . . . . . . . . . . . . . . . . . . . . . . . . . 66 Squads Dispatched 101 | . 3 . 7 7 . 7 . 4 . . . . 4 3 . . 5 6 . . . . 18 . . . 4 33 Investigation 22 | . 3 . 6 2 . 1 . 2 . . . . 1 2 . . 2 . . . . . 2 . . . . 1 Extermination 10 | . . . . . . 2 . 1 . . . . 1 . . . . 2 . . . . 4 . . . . . Reinforcement 20 | . . . 1 1 . 3 . . . . . . 1 1 . . 1 2 . . . . 6 . . . 2 2 Assault 41 | . . . . 3 . 1 . . . . . . 1 . . . 2 1 . . . . 3 . . . . 30 Garrison 6 | . . . . 1 . . . 1 . . . . . . . . . 1 . . . . 3 . . . . . Intercept 2 | . . . . . . . . . . . . . . . . . . . . . . . . . . . 2 . Searches Triggered . | . . . . . . . . . . . . . . . . . . . . . . . . . . . . . Data Miner Redirects 9 | . . . . . . . . . . . . . 2 1 . . 4 . . . . . 1 . . . . 1 Construction Impeded 3 | . . . . . . . . . . . . . . . . . . 2 . . . . 1 . . . . . Haulers Reinforced 6 | . . . . . . . . . . . . . 1 . . . . . . . . . 4 . . . . 1 Active Scanning Responses . | . . . . . . . . . . . . . . . . . . . . . . . . . . . . . Cargo Convoy Interrupts 1 | . . . . . . 1 . . . . . . . . . . . . . . . . . . . . . . Stealth | -11 -10 -10 -9 -9 -9 -7 -7 -7 -7 -7 -7 -6 -6 -6 -6 -6 -6 -5 -5 -5 -5 -4 -4 -4 -4 -3 -3 -3 --------- Run | Jun Mat Min Mat Sto Rec Fac Gar Fac Low Low Dat Pro Fac Ext Cet Arc Hub Fac Upp Upp Zhi Pro Fac Arm Lab Res Qua Sec Distress Signals 19 | . 2 . 5 1 . 1 . . . . . . . . 1 . 4 . . . . . 2 . . 1 2 . Communications Jammed 14 | . . . . . . . . . . . . . 1 13 . . . . . . . . . . . . . . Distress Signals 14 | . . . . . . . . . . . . . 1 13 . . . . . . . . . . . . . . Times Spotted 619 | . 17 9 34 41 2 61 7 10 3 . . 6 7 36 19 8 33 29 10 . . 5 83 . 1 3 17 178 Peak Tracking Total 34 | . 5 4 4 10 1 9 4 2 3 . . 3 3 4 5 2 8 4 4 . . 2 10 . 1 4 8 34 Tactical Retreats 21 | . . . . 1 . 2 . . . . . . . 5 . . 2 . . . . . 5 . . . 3 3 Traps | -11 -10 -10 -9 -9 -9 -7 -7 -7 -7 -7 -7 -6 -6 -6 -6 -6 -6 -5 -5 -5 -5 -4 -4 -4 -4 -3 -3 -3 ------- Run | Jun Mat Min Mat Sto Rec Fac Gar Fac Low Low Dat Pro Fac Ext Cet Arc Hub Fac Upp Upp Zhi Pro Fac Arm Lab Res Qua Sec Traps Triggered 17 | . 4 . 3 1 . . . 1 . . . . . 3 . . . . . . . . 3 . . . 1 1 Indirectly . | . . . . . . . . . . . . . . . . . . . . . . . . . . . . . Trap Hack Attempts . | . . . . . . . . . . . . . . . . . . . . . . . . . . . . . Triggered . | . . . . . . . . . . . . . . . . . . . . . . . . . . . . . Disarmed . | . . . . . . . . . . . . . . . . . . . . . . . . . . . . . Reprogrammed . | . . . . . . . . . . . . . . . . . . . . . . . . . . . . . Reused . | . . . . . . . . . . . . . . . . . . . . . . . . . . . . . Traps Extracted . | . . . . . . . . . . . . . . . . . . . . . . . . . . . . . Installed . | . . . . . . . . . . . . . . . . . . . . . . . . . . . . . Triggered 1 | . . . . . . . . . . 1 . . . . . . . . . . . . . . . . . . Machines | -11 -10 -10 -9 -9 -9 -7 -7 -7 -7 -7 -7 -6 -6 -6 -6 -6 -6 -5 -5 -5 -5 -4 -4 -4 -4 -3 -3 -3 ---------- Run | Jun Mat Min Mat Sto Rec Fac Gar Fac Low Low Dat Pro Fac Ext Cet Arc Hub Fac Upp Upp Zhi Pro Fac Arm Lab Res Qua Sec Machines Disabled 58 | . . . 1 2 . 2 1 9 . . . . 2 4 1 1 17 2 . . . . 6 . 1 . 3 6 Max in Single Turn 11 | . . . 1 1 . 1 1 . . . . . 1 1 . 1 11 1 . . . . 1 . 1 . 1 1 Garrison Access 9 | . . . . 1 . 1 . 1 . . . . 1 . . . 1 1 . . . . 3 . . . . . Garrison Relay 1 | . . . . . . . 1 . . . . . . . . . . . . . . . . . . . . . Network Hub 2 | . . . . . . . . . . . . . . . . . 2 . . . . . . . . . . . Machines Repaired . | . . . . . . . . . . . . . . . . . . . . . . . . . . . . . Machines Sabotaged . | . . . . . . . . . . . . . . . . . . . . . . . . . . . . . Overloaded Fab Kills . | . . . . . . . . . . . . . . . . . . . . . . . . . . . . . Hacking | -11 -10 -10 -9 -9 -9 -7 -7 -7 -7 -7 -7 -6 -6 -6 -6 -6 -6 -5 -5 -5 -5 -4 -4 -4 -4 -3 -3 -3 --------- Run | Jun Mat Min Mat Sto Rec Fac Gar Fac Low Low Dat Pro Fac Ext Cet Arc Hub Fac Upp Upp Zhi Pro Fac Arm Lab Res Qua Sec Machines Accessed 100 | . 10 . 14 6 9 7 . 7 . . 4 . 5 3 . . 4 5 . . 4 . 8 . 2 2 7 3 Terminals 60 | . 8 . 10 3 5 3 . 4 . . . . 2 3 . . 3 4 . . . . 4 . . 2 6 3 Fabricators 3 | . . . . . . 1 . 1 . . . . 1 . . . . . . . . . . . . . . . Repair Stations 2 | . . . 1 . . 1 . . . . . . . . . . . . . . . . . . . . . . Recycling Units 14 | . 2 . 2 2 4 1 . 1 . . . . 1 . . . . . . . . . 1 . . . . . Scanalyzers 1 | . . . 1 . . . . . . . . . . . . . . . . . . . . . . . . . Garrison Access 10 | . . . . 1 . 1 . 1 . . . . 1 . . . 1 1 . . . . 3 . . . 1 . Total Hacks 313 | . 26 . 37 10 25 22 . 32 . . 29 . 10 9 . . 10 10 . . 17 . 22 . 3 19 25 7 Successful 181 | . 13 . 20 8 19 15 . 21 . . 29 . 2 5 . . 1 5 . . 17 . 8 . 3 4 9 2 Failed 132 | . 13 . 17 2 6 7 . 11 . . . . 8 4 . . 9 5 . . . . 14 . . 15 16 5 Catastrophic 34 | . . . 2 . 1 1 . 1 . . . . 3 . . . 4 3 . . . . 9 . . 4 6 . Database Lockouts . | . . . . . . . . . . . . . . . . . . . . . . . . . . . . . Manual 93 | . 16 . 17 4 17 3 . 15 . . . . 2 4 . . 4 1 . . . . 7 . . . 3 . Terminals 183 | . 22 . 30 5 16 7 . 13 . . . . 3 9 . . 8 9 . . . . 14 . . 19 21 7 Fabricators 23 | . . . . . . 8 . 13 . . . . 2 . . . . . . . . . . . . . . . Repair Stations 4 | . . . 1 . . 3 . . . . . . . . . . . . . . . . . . . . . . Recycling Units 29 | . 4 . 3 3 9 3 . 3 . . . . 2 . . . . . . . . . 2 . . . . . Scanalyzers 3 | . . . 3 . . . . . . . . . . . . . . . . . . . . . . . . . Garrison Access 22 | . . . . 2 . 1 . 3 . . . . 3 . . . 2 1 . . . . 6 . . . 4 . Terminal Hacks 121 | . 9 . 14 4 9 1 . 6 . . 29 . 1 5 . . . 5 . . 17 . 4 . 3 4 8 2 Record 23 | . . . 1 . . . . . . . 11 . . . . . . . . . 5 . . . 3 . 3 . Part Schematic 18 | . 1 . 2 . 1 1 . . . . 9 . . . . . . . . . 4 . . . . . . . Robot Schematic 9 | . . . . . 2 . . 1 . . 6 . . . . . . . . . . . . . . . . . Robot Analysis 12 | . 3 . 2 1 . . . . . . . . . 1 . . . . . . 4 . . . . . 1 . Prototype ID Bank 11 | . 2 . 1 . . . . . . . 3 . . . . . . . . . 4 . . . . 1 . . Open Door 4 | . . . . 2 . . . . . . . . . . . . . . . . . . . . . . 1 1 Level Access Points 1 | . . . . . . . . . . . . . . 1 . . . . . . . . . . . . . . Branch Access Points 6 | . 1 . 1 . . . . . . . . . . . . . . 1 . . . . 1 . . 1 1 . Emergency Access Points 1 | . . . . . . . . . . . . . . . . . . . . . . . . . . 1 . . Terminal Index 2 | . . . . . 1 . . . . . . . . . . . . . . . . . . . . . 1 . Fabricator Index 1 | . . . . . . . . 1 . . . . . . . . . . . . . . . . . . . . Alert Level 11 | . 1 . 3 1 2 . . . . . . . . 1 . . . 1 . . . . 1 . . 1 . . Unreport Threat 13 | . . . 1 . 3 . . 3 . . . . . 1 . . . 2 . . . . 2 . . . 1 . Locate Traps 2 | . . . 1 . . . . . . . . . . 1 . . . . . . . . . . . . . . Maintenance Status 1 | . . . 1 . . . . . . . . . . . . . . . . . . . . . . . . . Surveillance Status 1 | . . . . . . . . . . . . . 1 . . . . . . . . . . . . . . . Recall Reinforcements 1 | . . . 1 . . . . . . . . . . . . . . . . . . . . . . . . . Hauler Manifests 1 | . 1 . . . . . . . . . . . . . . . . . . . . . . . . . . . Zone Layout 2 | . . . . . . . . 1 . . . . . . . . . 1 . . . . . . . . . . Activate Exoskeleton 1 | . . . . . . . . . . . . . . . . . . . . . . . . . . . . 1 Fabricator Hacks 18 | . . . . . . 6 . 12 . . . . . . . . . . . . . . . . . . . . Load Schematic 9 | . . . . . . 3 . 6 . . . . . . . . . . . . . . . . . . . . Build 9 | . . . . . . 3 . 6 . . . . . . . . . . . . . . . . . . . . Repair Station Hacks 3 | . . . . . . 3 . . . . . . . . . . . . . . . . . . . . . . Scan Component 1 | . . . . . . 1 . . . . . . . . . . . . . . . . . . . . . . Repair 1 | . . . . . . 1 . . . . . . . . . . . . . . . . . . . . . . Refit 1 | . . . . . . 1 . . . . . . . . . . . . . . . . . . . . . . Recycling Unit Hacks 10 | . 1 . 1 1 3 2 . . . . . . . . . . . . . . . . 2 . . . . . Report Inventory 6 | . 1 . . 1 3 1 . . . . . . . . . . . . . . . . . . . . . . Retrieve Matter 1 | . . . . . . . . . . . . . . . . . . . . . . . 1 . . . . . Retrieve Components 3 | . . . 1 . . 1 . . . . . . . . . . . . . . . . 1 . . . . . Scanalyzer 2 | . . . 2 . . . . . . . . . . . . . . . . . . . . . . . . . Insert Component 1 | . . . 1 . . . . . . . . . . . . . . . . . . . . . . . . . Analyze 1 | . . . 1 . . . . . . . . . . . . . . . . . . . . . . . . . Garrison Access Hacks 5 | . . . . 1 . 1 . . . . . . 1 . . . . . . . . . 2 . . . . . Unlock Access 2 | . . . . . . 1 . . . . . . 1 . . . . . . . . . . . . . . . Seal Access 3 | . . . . 1 . . . . . . . . . . . . . . . . . . 2 . . . . . Unauthorized Hacks 22 | . 3 . 3 2 7 2 . 3 . . . . . . . . 1 . . . . . . . . . 1 . Terminals 6 | . 1 . . . 3 . . . . . . . . . . . 1 . . . . . . . . . 1 . Assimilate 1 | . . . . . . . . . . . . . . . . . . . . . . . . . . . 1 . Botnet 5 | . 1 . . . 3 . . . . . . . . . . . 1 . . . . . . . . . . . Fabricators 2 | . . . . . . 1 . 1 . . . . . . . . . . . . . . . . . . . . Prioritize 1 | . . . . . . . . 1 . . . . . . . . . . . . . . . . . . . . Download 1 | . . . . . . 1 . . . . . . . . . . . . . . . . . . . . . . Repair Stations 1 | . . . 1 . . . . . . . . . . . . . . . . . . . . . . . . . Mechanics 1 | . . . 1 . . . . . . . . . . . . . . . . . . . . . . . . . Recycling Units 12 | . 2 . 2 2 4 1 . 1 . . . . . . . . . . . . . . . . . . . . Reject 1 | . . . . . . . . 1 . . . . . . . . . . . . . . . . . . . . Mask 1 | . . . . . . 1 . . . . . . . . . . . . . . . . . . . . . . Tunnel 10 | . 2 . 2 2 4 . . . . . . . . . . . . . . . . . . . . . . . Scanalyzers . | . . . . . . . . . . . . . . . . . . . . . . . . . . . . . Garrison Access 1 | . . . . . . . . 1 . . . . . . . . . . . . . . . . . . . . Jam 1 | . . . . . . . . 1 . . . . . . . . . . . . . . . . . . . . Data Cores Recovered 1 | . . . 1 . . . . . . . . . . . . . . . . . . . . . . . . . Used 1 | . . . 1 . . . . . . . . . . . . . . . . . . . . . . . . . Hacking Detections 67 | . 8 . 10 2 6 7 . 6 . . . . 5 3 . . 4 3 . . . . 5 . . 2 4 2 Full Trace Events 12 | . 2 . 2 . . . . 1 . . . . 1 2 . . 2 . . . . . 1 . . . . 1 Feedback Events 1 | . . . . . . . . . . . . . . . . . 1 . . . . . . . . . . . Corruption 1 | . . . . . . . . . . . . . . . . . 1 . . . . . . . . . . . Feedback Blocked . | . . . . . . . . . . . . . . . . . . . . . . . . . . . . . Robot Schematics Acquired 9 | . . . . . 2 . . 1 . . 6 . . . . . . . . . . . . . . . . . Robots Built 18 | . . . . . . 6 . 12 . . . . . . . . . . . . . . . . . . . . Authchips 9 | . . . . . . 3 . 6 . . . . . . . . . . . . . . . . . . . . Time 495 | . . . . . . 147 . 348 . . . . . . . . . . . . . . . . . . . . Total Robot Build Rating 48 | . . . . . . 12 . 36 . . . . . . . . . . . . . . . . . . . . Part Schematics Acquired 19 | . 1 . 3 . 1 1 . . . . 9 . . . . . . . . . 4 . . . . . . . Parts Built . | . . . . . . . . . . . . . . . . . . . . . . . . . . . . . Authchips . | . . . . . . . . . . . . . . . . . . . . . . . . . . . . . Time . | . . . . . . . . . . . . . . . . . . . . . . . . . . . . . Total Part Build Rating . | . . . . . . . . . . . . . . . . . . . . . . . . . . . . . Parts Repaired 1 | . . . . . . 1 . . . . . . . . . . . . . . . . . . . . . . Time 22 | . . . . . . 22 . . . . . . . . . . . . . . . . . . . . . . Parts Recycled . | . . . . . . . . . . . . . . . . . . . . . . . . . . . . . Recycled Matter . | . . . . . . . . . . . . . . . . . . . . . . . . . . . . . Retrieved Matter . | . . . . . . . . . . . . . . . . . . . . . . . . . . . . . Retrieved Components 23 | . . . 10 . . 10 . . . . . . . . . . . . . . . . 3 . . . . . Parts Scanalyzed 1 | . . . 1 . . . . . . . . . . . . . . . . . . . . . . . . . Part Schematics Acquired 1 | . . . 1 . . . . . . . . . . . . . . . . . . . . . . . . . Parts Damaged . | . . . . . . . . . . . . . . . . . . . . . . . . . . . . . Bothacking | -11 -10 -10 -9 -9 -9 -7 -7 -7 -7 -7 -7 -6 -6 -6 -6 -6 -6 -5 -5 -5 -5 -4 -4 -4 -4 -3 -3 -3 ------------ Run | Jun Mat Min Mat Sto Rec Fac Gar Fac Low Low Dat Pro Fac Ext Cet Arc Hub Fac Upp Upp Zhi Pro Fac Arm Lab Res Qua Sec Used RIF Installer . | . . . . . . . . . . . . . . . . . . . . . . . . . . . . . Robots Hacked . | . . . . . . . . . . . . . . . . . . . . . . . . . . . . . Non-combat . | . . . . . . . . . . . . . . . . . . . . . . . . . . . . . Combat . | . . . . . . . . . . . . . . . . . . . . . . . . . . . . . Robot Hacks Applied . | . . . . . . . . . . . . . . . . . . . . . . . . . . . . . Relay Couplers Released 11 | . . . . . . . 4 . . . . . 2 . . . 3 1 . . . . 1 . . . . . Machine Destruction 11 | . . . . . . . 4 . . . . . 2 . . . 3 1 . . . . 1 . . . . . Fabnet Peak Effective % . | . . . . . . . . . . . . . . . . . . . . . . . . . . . . . Robots Rewired 21 | . . . . . 8 . 3 . . . . . . 10 . . . . . . . . . . . . . . Allies Hacked 1 | . . . . . . 1 . . . . . . . . . . . . . . . . . . . . . . Hacks Repelled . | . . . . . . . . . . . . . . . . . . . . . . . . . . . . . Allies | -11 -10 -10 -9 -9 -9 -7 -7 -7 -7 -7 -7 -6 -6 -6 -6 -6 -6 -5 -5 -5 -5 -4 -4 -4 -4 -3 -3 -3 -------- Run | Jun Mat Min Mat Sto Rec Fac Gar Fac Low Low Dat Pro Fac Ext Cet Arc Hub Fac Upp Upp Zhi Pro Fac Arm Lab Res Qua Sec Total Allies 57 | . . . . 2 8 6 3 12 . . . 1 . 24 . . . . . . . . . . . . . 1 Largest Group 12 | . . . . 2 6 12 3 12 7 7 7 8 3 12 12 . . . . . . . . . . . . 1 Highest-Rated Group 1195 | . . . . 62 80 170 36 245 140 137 137 233 135 438 438 . . . . . . . . . . . . 1195 Highest-Rated Ally 1195 | . . . . 31 27 27 12 21 21 21 21 96 96 159 112 . . . . . . . . . . . . 1195 Total Orders 3 | . . . . . . 3 . . . . . . . . . . . . . . . . . . . . . . FOLLOW 1 | . . . . . . 1 . . . . . . . . . . . . . . . . . . . . . . TUNNEL 1 | . . . . . . 1 . . . . . . . . . . . . . . . . . . . . . . COLLECT 1 | . . . . . . 1 . . . . . . . . . . . . . . . . . . . . . . Ally Attacks 630 | . . . . 23 7 70 . 50 12 8 . 44 20 138 95 . . . . . . . . . . . . 163 Total Damage 24590 | . . . . 440 124 1769 . 1386 158 146 . 1192 248 2766 1576 . . . . . . . . . . . . 14785 Kills 141 | . . . . 6 . 17 . 12 1 1 . 8 2 20 10 . . . . . . . . . . . . 64 Allies Corrupted 1 | . . . . . . . . . . . . 1 . . . . . . . . . . . . . . . . Allies Melted . | . . . . . . . . . . . . . . . . . . . . . . . . . . . . . Intel | -11 -10 -10 -9 -9 -9 -7 -7 -7 -7 -7 -7 -6 -6 -6 -6 -6 -6 -5 -5 -5 -5 -4 -4 -4 -4 -3 -3 -3 ------- Run | Jun Mat Min Mat Sto Rec Fac Gar Fac Low Low Dat Pro Fac Ext Cet Arc Hub Fac Upp Upp Zhi Pro Fac Arm Lab Res Qua Sec Robot Analysis Total 12 | . 3 . 2 1 . . . . . . . . . 1 . . . . . . 4 . . . . . 1 . Derelict Logs Recovered 7 | . . 1 . . . . . . . 1 . 2 . . . . . . 1 . . 2 . . . . . . Drone Launches . | . . . . . . . . . . . . . . . . . . . . . . . . . . . . . Drone Recoveries . | . . . . . . . . . . . . . . . . . . . . . . . . . . . . . Exploration | -11 -10 -10 -9 -9 -9 -7 -7 -7 -7 -7 -7 -6 -6 -6 -6 -6 -6 -5 -5 -5 -5 -4 -4 -4 -4 -3 -3 -3 ------------- Run | Jun Mat Min Mat Sto Rec Fac Gar Fac Low Low Dat Pro Fac Ext Cet Arc Hub Fac Upp Upp Zhi Pro Fac Arm Lab Res Qua Sec Turns Passed 21163 | 5 1371 280 1447 790 611 1800 251 1931 289 436 111 418 719 1473 568 245 791 1448 579 316 176 600 3239 1 59 50 353 806 Spaces Moved 12516 | 4 696 217 1081 347 475 876 115 992 220 353 90 279 482 581 247 95 293 691 241 267 166 427 1768 1 128 162 768 454 Core 230 | . . . . . . . . . . . . . . . . . . . . . . . . . . . 3 227 Treads 1090 | . . . . . . 277 115 698 . . . . . . . . . . . . . . . . . . . . Legs 4736 | 4 669 . . . . . . 294 220 353 90 279 482 581 247 95 293 274 . . . . 690 . . . . 165 Wheels 5097 | . 27 217 1081 347 475 599 . . . . . . . . . . . 417 241 267 166 427 833 . . . . . Hover 116 | . . . . . . . . . . . . . . . . . . . . . . . . . . . 54 62 Flight 1247 | . . . . . . . . . . . . . . . . . . . . . . . 245 1 128 162 711 . Fastest Speed 20 | 120 105 90 90 105 105 105 150 112 120 120 120 120 114 120 190 190 113 100 100 100 100 100 23 23 23 24 20 50 Average Speed 120 | 120 157 104 101 105 105 129 150 155 120 120 120 130 125 175 191 190 176 123 107 100 100 102 133 23 23 24 30 82 Slowest Speed 350 | 120 190 105 105 105 105 225 150 230 120 120 120 190 190 190 260 190 190 183 115 100 100 130 260 23 23 24 350 350 Overloaded Moves 169 | . . . . . . . . . . . . . . . . . . . . . . . 12 1 128 . 28 . Propulsion Burnouts . | . . . . . . . . . . . . . . . . . . . . . . . . . . . . . Robots Hopped 9 | . . . . . . . . . . . . . . . . . . . . . . . . . . 1 8 . Cave-ins Triggered . | . . . . . . . . . . . . . . . . . . . . . . . . . . . . . Teleports 4 | . . . . . . . . . . . . . . . . . . . . . . . . 1 . . 3 . Exploration Rate (%) 50 | 2 91 53 97 50 98 22 17 17 50 59 71 58 11 78 60 88 40 19 46 46 63 59 44 1 97 8 79 43 Regions Visited 28 Branch Regions 19 Pre-discovered Areas 17 | . 2 . 2 2 4 . . . 1 . 1 . . . . . . . 1 . 3 1 . . . . . . Known Exits Taken 23 | . 1 . 1 . . 1 . 1 1 1 1 1 1 1 1 1 1 1 1 1 1 1 1 1 1 1 1 . Unknown Exits Taken 4 | 1 . 1 . 1 1 . . . . . . . . . . . . . . . . . . . . . . . Scrap Searched 6 | . . . . . . . . . 1 1 . . . . . . . . 2 2 . . . . . . . . Spaces Dug 29 | . . . . . . . . . . . . . . . . . . 2 . . . 18 5 . . . 2 2 Terrain Destroyed 723 | . 10 43 2 15 . 18 . . . . . . . 1 71 4 311 30 13 . . 24 162 . . . 17 2 Melee 6 | . . . . . . . . . . . . . . . . . . 2 . . . . . . . . 2 2 Projectile 116 | . . 3 2 1 . 5 . . . . . . . 1 1 4 27 11 5 . . 8 48 . . . . . AOE 601 | . 10 40 . 14 . 13 . . . . . . . . 70 . 284 17 8 . . 16 114 . . . 15 . Terrain Rammed . | . . . . . . . . . . . . . . . . . . . . . . . . . . . . . Walls Destroyed . | . . . . . . . . . . . . . . . . . . . . . . . . . . . . . Machines Disabled . | . . . . . . . . . . . . . . . . . . . . . . . . . . . . . Actions | -11 -10 -10 -9 -9 -9 -7 -7 -7 -7 -7 -7 -6 -6 -6 -6 -6 -6 -5 -5 -5 -5 -4 -4 -4 -4 -3 -3 -3 --------- Run | Jun Mat Min Mat Sto Rec Fac Gar Fac Low Low Dat Pro Fac Ext Cet Arc Hub Fac Upp Upp Zhi Pro Fac Arm Lab Res Qua Sec Total 16556 | 5 898 244 1281 611 577 1342 175 1364 236 362 93 303 551 860 287 121 407 1111 484 315 176 541 2314 1 149 171 865 712 Wait 1985 | . 78 5 76 151 27 262 . 319 9 8 . 4 12 122 . . 7 245 199 45 . 77 161 . . 1 77 100 Move 12472 | 3 695 216 1080 346 474 876 114 991 219 352 89 278 481 580 246 94 292 690 240 266 165 426 1767 . 127 159 752 454 Hop 8 | . . . . . . . . . . . . . . . . . . . . . . . . . . 1 7 . Pick Up 192 | . 28 3 18 4 4 24 7 14 1 . . . 8 6 3 3 . 14 . 2 1 3 35 . 3 1 5 5 Fast Attach 169 | . 15 . 5 3 . 13 . 2 . . 2 . . 2 4 . 9 26 . . 5 . 39 . 6 4 1 33 Attach 109 | . 2 . 3 2 . 10 1 10 . . . 2 2 1 1 3 8 7 3 . . 4 30 1 2 1 8 8 Detach 30 | . 1 . . 1 . 4 . . . . . . . . . . . 2 . . . 2 14 . 1 . 1 4 Swap 167 | . 13 5 10 17 . 22 1 7 . . . 2 20 6 5 2 8 17 4 2 . 3 19 . . . . 4 Drop 226 | 2 25 3 16 7 5 27 6 8 1 . 2 . 10 7 7 . 1 20 1 . 5 2 47 . 6 4 5 9 Fire 982 | . 40 12 73 80 6 104 13 13 6 2 . 17 15 60 21 19 81 79 37 . . 24 199 . . . 1 80 Melee 41 | . . . . . . . . . . . . . 1 2 . . 1 11 . . . . 2 . 4 . 8 12 Ram 1 | . . . . . . . . . . . . . . . . . . . . . . . . . . . . 1 Kick 5 | . 1 . . . . . . . . . . . 2 1 . . . . . . . . 1 . . . . . Crush . | . . . . . . . . . . . . . . . . . . . . . . . . . . . . . Escape Stasis 16 | . . . . . . . . . . . . . . 14 . . . . . . . . . . . . . 2 Rewire 153 | . . . . . 61 . 33 . . . . . . 59 . . . . . . . . . . . . . . Trap . | . . . . . . . . . . . . . . . . . . . . . . . . . . . . . Miscellaneous . | . . . . . . . . . . . . . . . . . . . . . . . . . . . . . Route ------- -11/Junkyard -10/Materials (discovered 3 exits: *Mat x2 / *Min) -10/Mines -9/Materials (discovered 5 exits: [*Mat x3] / *Min / *Sto) -9/Storage -9/Recycling -7/Factory -7/Garrison -7/Factory -7/Lower Caves -7/Lower Caves -7/Data Miner -6/Proximity Caves -6/Factory (discovered 5 exits: Fac x2 / Low / *Ext x2) -6/Extension (discovered 3 exits: *Fac x2 / *Cet) -6/Cetus (discovered 2 exits: *Fac / *Arc) -6/Archives (discovered 3 exits: *Fac / *Hub x2) -6/Hub_04(d) -5/Factory (discovered 3 exits: *Fac / *Upp x2) -5/Upper Caves -5/Upper Caves -5/Zhirov -4/Proximity Caves -4/Factory (discovered 5 exits: *Res x2 / Upp x2 / *Arm) -4/Armory -4/Lab -3/Research (discovered 2 exits: *Qua x2) -3/Quarantine (discovered 2 exits: *Res / *Sec) -3/Section 7 History --------- Turn | Location | Event 1 | -11/Junkyard | Discovered new exit (range 1) 6 | -11/Junkyard | Entered Materials 119 | -10/Materials | Identified exit to Mines 300 | -10/Materials | Build established: Mutant 317 | -10/Materials | Discovered new exit (range 16) 1012 | -10/Materials | Discovered new exit (range 14) 1138 | -10/Materials | Build established: Scavenger-Mutant 1377 | -10/Materials | Entered Mines 1378 | -10/Mines | Assembled infested the area 1445 | -10/Mines | YI-UF0 nonchalantly dropped a Grenade Launcher on the ground 1446 | -10/Mines | Destroyed 7 combat bots 1598 | -10/Mines | Discovered new exit (range 6) 1621 | -10/Mines | Build established: Mutant 1642 | -10/Mines | Learned Materials stockpile data 1657 | -10/Mines | Entered Materials 1657 | -9/Materials | Evolved 2 slots: Propulsion x1, Utility x1 1967 | -9/Materials | Discovered new exit (range 8) 2111 | -9/Materials | Discovered new exit (range 5) 2540 | -9/Materials | Discovered new exit (range 16) 2783 | -9/Materials | Identified exit to Mines 2783 | -9/Materials | Identified exit to Storage 2819 | -9/Materials | Discovered new exit (range 8) 3018 | -9/Materials | Discovered new exit (range 10) 3104 | -9/Materials | Entered Storage 3200 | -9/Storage | Met a pair of Derelict thieves 3504 | -9/Storage | First assault squad dispatched 3534 | -9/Storage | Destroyed 10 combat bots 3852 | -9/Storage | Used back door to open Recycling access 3852 | -9/Storage | Discovered new exit (range 4) 3894 | -9/Storage | Entered Recycling 3895 | -9/Recycling | Found Scrap Engine 4278 | -9/Recycling | Discovered new exit (range 16) 4505 | -9/Recycling | Entered Factory 4505 | -7/Factory | Accompanied by 6 allies 4505 | -7/Factory | Evolved 4 slots: Propulsion x1, Utility x3 4569 | -7/Factory | Fabricated Y-45 Defender (x2) 4661 | -7/Factory | Fabricated Y-45 Defender (x2) 4689 | -7/Factory | Build established: Commander-Mutant 4710 | -7/Factory | Fabricated Y-45 Defender (x2) 5192 | -7/Factory | Cargo convoy interrupted 5205 | -7/Factory | P-60 Hacker assimilated allied Defender 4d 5235 | -7/Factory | Found Prototype Processor 5235 | -7/Factory | Identified Exp. Signal Interpreter 5334 | -7/Factory | Found Exp. Signal Interpreter 5339 | -7/Factory | Destroyed 7 combat bots 5566 | -7/Factory | Build established: Mutant 5805 | -7/Factory | Destroyed 8 combat bots 5824 | -7/Factory | Repaired Imp. Deuterium Engine 6048 | -7/Factory | Found Prototype Slashing Weapon 6305 | -7/Factory | Identified exit to Garrison 6305 | -7/Factory | Entered Garrison 6324 | -7/Garrison | Triggered checkpoint 6361 | -7/Garrison | Garrison Relay disabled 6458 | -7/Garrison | Triggered checkpoint 6511 | -7/Garrison | Discovered new exit (range 5) 6515 | -7/Garrison | Identified exit to Factory 6556 | -7/Garrison | Entered Factory 6556 | -7/Factory | Accompanied by 3 allies 6784 | -7/Factory | Discovered new exit (range 8) 6794 | -7/Factory | Identified exit to Lower Caves 7096 | -7/Factory | Fabricated H-55 Commando (x2) 7155 | -7/Factory | Fabricated H-55 Commando? 7172 | -7/Factory | Garrison activated, responded to threat 7368 | -7/Factory | Fabricated H-55 Commando (x2) 7427 | -7/Factory | Fabricated H-55 Commando (x2) 7448 | -7/Factory | Build established: Commander-Mutant 7486 | -7/Factory | Fabricated H-55 Commando (x2) 7545 | -7/Factory | Fabricated H-55 Commando (x2) 8309 | -7/Factory | Build established: Commander-Skirmisher 8487 | -7/Factory | Entered Lower Caves 8487 | -7/Lower Caves | Accompanied by 7 allies 8493 | -7/Lower Caves | Met a Warlord Commander 8494 | -7/Lower Caves | Learned location of Warlord (-4) 8498 | -7/Lower Caves | Found Encrypted Comm Array 8765 | -7/Lower Caves | Discovered new exit (range 5) 8770 | -7/Lower Caves | Identified exit to Lower Caves 8776 | -7/Lower Caves | Entered another Lower Caves area 8776 | -7/Lower Caves | Accompanied by 7 allies 9061 | -7/Lower Caves | Learned 4 Factory zone layouts 9197 | -7/Lower Caves | Discovered new exit (range 7) 9205 | -7/Lower Caves | Identified exit to Data Miner 9212 | -7/Lower Caves | Entered Data Miner 9212 | -7/Data Miner | Accompanied by 7 allies 9212 | -7/Data Miner | Discovered new exit (range 6) 9231 | -7/Data Miner | Met Data Miner 9257 | -7/Data Miner | Learned location of Section 7 (-3) 9257 | -7/Data Miner | Acquired the access code to Warlord's prototype stash 9279 | -7/Data Miner | Received God Mode back door access code from Data Miner 9322 | -7/Data Miner | Identified exit to Proximity Caves 9323 | -7/Data Miner | Entered Proximity Caves 9323 | -6/Proximity Caves | Accompanied by 7 allies 9333 | -6/Proximity Caves | Escorted by Enhanced Grunt 9339 | -6/Proximity Caves | Learned 12 Factory zone layouts 9457 | -6/Proximity Caves | Spotted B-75 Beast 9495 | -6/Proximity Caves | Destroyed B-75 Beast 9610 | -6/Proximity Caves | Learned Factory stockpile data 9713 | -6/Proximity Caves | Discovered new exit (range 9) 9738 | -6/Proximity Caves | Identified exit to Factory 9741 | -6/Proximity Caves | Entered Factory 9741 | -6/Factory | Accompanied by 3 allies 9741 | -6/Factory | Evolved 2 slots: Propulsion x1, Utility x1 9742 | -6/Factory | Identified exit to Lower Caves 9742 | -6/Factory | Identified exit to Factory 9742 | -6/Factory | Identified exit to Extension 9773 | -6/Factory | Identified exit to Garrison 9796 | -6/Factory | Incoming investigation squad redirected 9798 | -6/Factory | Build established: Mutant 9803 | -6/Factory | Incoming assault squad redirected 10296 | -6/Factory | Build established: Scavenger-Mutant 10447 | -6/Factory | Discovered exit to Extension (range 6) 10460 | -6/Factory | Entered Extension 10460 | -6/Extension | Accompanied by 1 ally 10472 | -6/Extension | Disrupted transfer network 10908 | -6/Extension | Rescued a captive Derelict 10908 | -6/Extension | Rescued a captive Derelict 10943 | -6/Extension | Rescued a captive Derelict 10944 | -6/Extension | Rescued a captive Derelict 11099 | -6/Extension | Rescued a captive Derelict 11100 | -6/Extension | Rescued a captive Derelict 11135 | -6/Extension | Incoming investigation squad redirected 11169 | -6/Extension | Rescued A7 11174 | -6/Extension | Spotted B-75 Beast 11179 | -6/Extension | Spotted B-75 Beast 11196 | -6/Extension | Allies destroyed B-75 Beast 11219 | -6/Extension | Allies destroyed B-75 Beast 11469 | -6/Extension | Rescued a captive Derelict 11470 | -6/Extension | Rescued a captive Derelict 11490 | -6/Extension | Rescued a captive Derelict 11491 | -6/Extension | Rescued a captive Derelict 11648 | -6/Extension | Rescued a captive Derelict 11648 | -6/Extension | Rescued a captive Derelict 11736 | -6/Extension | Rescued a captive Derelict 11884 | -6/Extension | Discovered new exit (range 6) 11914 | -6/Extension | Identified exit to Cetus 11933 | -6/Extension | Entered Cetus 11933 | -6/Cetus | Accompanied by 12 allies (A7) 11938 | -6/Cetus | Acquired a Cetus Manufacturing Module code from A7 11951 | -6/Cetus | Spotted Cetus Guard 11952 | -6/Cetus | Spotted Cetus Guard 11953 | -6/Cetus | Spotted Cetus Guard 11957 | -6/Cetus | Spotted Cetus Guard 11960 | -6/Cetus | Extracted ID and sensor layout for unrecognized location from A7's data core 11967 | -6/Cetus | Allies destroyed Cetus Guard 11969 | -6/Cetus | Allies destroyed Cetus Guard 11971 | -6/Cetus | Allies destroyed Cetus Guard 11979 | -6/Cetus | Allies destroyed Cetus Guard 12064 | -6/Cetus | Cetus Manufacturing Module disabled 12097 | -6/Cetus | Lost 3 parts (2n1w) 12228 | -6/Cetus | Discovered new exit (range 21) 12266 | -6/Cetus | Identified exit to Archives 12324 | -6/Cetus | Spotted Cetus Guard 12324 | -6/Cetus | Spotted Cetus Guard 12324 | -6/Cetus | Spotted Cetus Guard 12324 | -6/Cetus | Spotted Cetus Guard 12340 | -6/Cetus | Destroyed Cetus Guard 12347 | -6/Cetus | Destroyed Cetus Guard 12347 | -6/Cetus | Destroyed Cetus Guard 12354 | -6/Cetus | Destroyed Cetus Guard 12360 | -6/Cetus | Discovered exit to Factory (range 22) 12402 | -6/Cetus | Met Revision 17 12501 | -6/Cetus | Entered Archives 12575 | -6/Archives | Lost 3 parts (2u1w) 12592 | -6/Archives | Discovered new exit (range 22) 12609 | -6/Archives | Discovered exit to Factory (range 14) 12629 | -6/Archives | Discovered new exit (range 14) 12653 | -6/Archives | Unable to access archive contents 12744 | -6/Archives | Identified exit to Hub_04(d) 12746 | -6/Archives | Entered Hub_04(d) 12818 | -6/Hub_04(d) | Incoming investigation squad redirected 12827 | -6/Hub_04(d) | Incoming assault squad redirected 12933 | -6/Hub_04(d) | Network Hub disabled 13098 | -6/Hub_04(d) | Incoming investigation squad redirected 13187 | -6/Hub_04(d) | Lost 3 parts (2n1u) 13307 | -6/Hub_04(d) | Spotted Lightning 13307 | -6/Hub_04(d) | Spotted Lightning 13307 | -6/Hub_04(d) | Spotted Lightning 13357 | -6/Hub_04(d) | Destroyed Lightning 13378 | -6/Hub_04(d) | Core integrity fell below 50% 13378 | -6/Hub_04(d) | System corruption reached 10% 13404 | -6/Hub_04(d) | Destroyed Lightning 13446 | -6/Hub_04(d) | First assault squad dispatched 13448 | -6/Hub_04(d) | Lost 8 parts (1p3n2u2w) 13466 | -6/Hub_04(d) | Incoming assault squad redirected 13510 | -6/Hub_04(d) | Network Hub disabled 13527 | -6/Hub_04(d) | Discovered exit to Factory (range 9) 13537 | -6/Hub_04(d) | Entered Factory 13537 | -5/Factory | Evolved 2 slots: Power x1, Propulsion x1 13845 | -5/Factory | Build established: Scavenger-Skirmisher 14225 | -5/Factory | Lost 6 parts (2p1n3u) 14385 | -5/Factory | Lost 3 parts (2n1w) 14512 | -5/Factory | Build established: Scavenger-Mutant 14547 | -5/Factory | Identified exit to Upper Caves 14618 | -5/Factory | Discovered new exit (range 7) 14828 | -5/Factory | Build established: Mutant 14985 | -5/Factory | Entered Upper Caves 15132 | -5/Upper Caves | Spotted B-75 Beast 15239 | -5/Upper Caves | Destroyed B-75 Beast 15507 | -5/Upper Caves | Attracted the attention of an 0b10 checkpoint 15548 | -5/Upper Caves | Discovered new exit (range 17) 15563 | -5/Upper Caves | Identified exit to Upper Caves 15564 | -5/Upper Caves | Build established: Skirmisher 15564 | -5/Upper Caves | Entered another Upper Caves area 15709 | -5/Upper Caves | Encountered a Warlord checkpoint 15867 | -5/Upper Caves | Discovered new exit (range 14) 15879 | -5/Upper Caves | Identified exit to Zhirov 15880 | -5/Upper Caves | Entered Zhirov 15881 | -5/Zhirov | Discovered new exit (range 3) 15899 | -5/Zhirov | Met Zhirov 15921 | -5/Zhirov | Learned location of Command (-1) 15927 | -5/Zhirov | Zhirov requested help retrieving the SGEMP Prototype 15964 | -5/Zhirov | Found Alien Artifact 15964 | -5/Zhirov | Identified Integrated Reactor 15964 | -5/Zhirov | Installed Integrated Reactor, increased core energy generation (+10) 15981 | -5/Zhirov | Found Alien Artifact 16055 | -5/Zhirov | Identified exit to Proximity Caves 16056 | -5/Zhirov | Entered Proximity Caves 16113 | -4/Proximity Caves | Attracted the attention of an 0b10 checkpoint 16531 | -4/Proximity Caves | Spotted B-86 Titan 16532 | -4/Proximity Caves | Learned Research terminal intel 16561 | -4/Proximity Caves | Destroyed B-86 Titan 16579 | -4/Proximity Caves | Learned location of Armory (-4) 16640 | -4/Proximity Caves | Discovered new exit (range 8) 16647 | -4/Proximity Caves | Identified exit to Factory 16656 | -4/Proximity Caves | Entered Factory 16656 | -4/Factory | Evolved 2 slots: Utility x2 16792 | -4/Factory | Build established: Mutant 16800 | -4/Factory | Spotted B-86 Titan 17149 | -4/Factory | Found Quantum Capacitor 17601 | -4/Factory | Lost 4 parts (1p1n1u1w) 17798 | -4/Factory | Build established: Scavenger-Mutant 18440 | -4/Factory | Build established: Scavenger-Skirmisher 18866 | -4/Factory | Discovered new exit (range 6) 18877 | -4/Factory | Identified exit to Research 19060 | -4/Factory | Garrison activated, responded to threat 19138 | -4/Factory | Identified exit to Upper Caves 19138 | -4/Factory | Identified exit to Armory 19161 | -4/Factory | Discovered exit to Research (range 17) 19183 | -4/Factory | Incoming investigation squad redirected 19406 | -4/Factory | First assault squad dispatched 19456 | -4/Factory | Build established: Scavenger-Mutant 19526 | -4/Factory | Core integrity fell below 50% 19558 | -4/Factory | Lost 12 parts (2p4n3u3w) 19565 | -4/Factory | Destroyed 8 combat bots 19576 | -4/Factory | Garrison activated, responded to threat 19673 | -4/Factory | Found Powered Armor 19677 | -4/Factory | Found Powered Armor 19895 | -4/Factory | Entered Armory 19895 | -4/Armory | Identified Transdimensional Reconstructor 19895 | -4/Armory | Warped through subspace to slip node 19895 | -4/Armory | Discovered new exit (range 1) 19895 | -4/Armory | Identified exit to Lab 19896 | -4/Armory | Entered Lab 19896 | -4/Lab | Discovered exit to Research (range 9) 19899 | -4/Lab | Hidden lab's door opened automatically 19899 | -4/Lab | Sensor layout match revealed 19899 | -4/Lab | Unable to decrypt terminal 19900 | -4/Lab | Gained access to the hidden lab's interior 19900 | -4/Lab | Unable to decrypt terminal 19902 | -4/Lab | Found Alien Artifact 19903 | -4/Lab | Identified Core Reset Matrix 19903 | -4/Lab | Used Core Reset Matrix 19907 | -4/Lab | Sensed 3 artifacts in vicinity 19909 | -4/Lab | Found Integrated Mediator 19909 | -4/Lab | Installed Integrated Mediator, increased core attachment efficiency. 19917 | -4/Lab | Found Core Regenerator 19923 | -4/Lab | Found Transdimensional Reconstructor 19931 | -4/Lab | Found Prototype Hackware 19931 | -4/Lab | Identified Quantum Router 19934 | -4/Lab | Found Prototype Protection 19934 | -4/Lab | Identified Hvy. Regenerative Plating 19940 | -4/Lab | Found Prototype Energy Gun 19940 | -4/Lab | Identified Hyp. EM Gauss Rifle 19943 | -4/Lab | Detected by scanners 19944 | -4/Lab | Unable to decrypt terminal 19948 | -4/Lab | Found Prototype Special Weapon 19948 | -4/Lab | Identified Gui. Remote Datajack 19953 | -4/Lab | Confronted by A5 19954 | -4/Lab | Discovered exit to Research (range 6) 19955 | -4/Lab | Entered Research 19955 | -3/Research | Evolved 2 slots: Propulsion x2 19958 | -3/Research | Identified exit to Quarantine 19995 | -3/Research | Spotted B-86 Titan 20005 | -3/Research | Entered Quarantine 20006 | -3/Quarantine | Detected hypermatrix surge 20006 | -3/Quarantine | Sensed 16 artifacts in vicinity 20010 | -3/Quarantine | Found Transdimensional Reconstructor 20014 | -3/Quarantine | Found Transdimensional Reconstructor 20016 | -3/Quarantine | Found Transdimensional Reconstructor 20051 | -3/Quarantine | Met incapacitated Sigix Warrior 20051 | -3/Quarantine | Lockdown squad dispatched 20060 | -3/Quarantine | Acquired the access code to the Sigix quarantine chamber 20061 | -3/Quarantine | Unlocked Sigix quarantine chamber 20072 | -3/Quarantine | Spotted Lightning 20072 | -3/Quarantine | Spotted Lightning 20072 | -3/Quarantine | Spotted Lightning 20095 | -3/Quarantine | Found Subatomic Replicator 20132 | -3/Quarantine | Discovered new exit (range 5) 20132 | -3/Quarantine | Identified exit to Research 20153 | -3/Quarantine | Build established: Hacker-Sprinter 20162 | -3/Quarantine | Found Sigix Broadsword 20179 | -3/Quarantine | Warped through subspace 20187 | -3/Quarantine | Intercept squad dispatched 20189 | -3/Quarantine | Spotted Tracker 20200 | -3/Quarantine | Warped through subspace 20201 | -3/Quarantine | Warped through subspace 20289 | -3/Quarantine | Spotted Combat Programmer 20292 | -3/Quarantine | Spotted Fortress 20349 | -3/Quarantine | Discovered new exit (range 6) 20352 | -3/Quarantine | Core integrity fell below 50% 20355 | -3/Quarantine | Identified exit to Section 7 20358 | -3/Quarantine | Entered Section 7 20359 | -3/Section 7 | Sensed 17 artifacts in vicinity 20382 | -3/Section 7 | Lost 9 parts (1p6n1u1w) 20502 | -3/Section 7 | Used Core Regenerator, restored core integrity (+325) 20503 | -3/Section 7 | Incoming investigation squad redirected 20527 | -3/Section 7 | Spotted B-86 Titan 20563 | -3/Section 7 | Spotted Executioner 20564 | -3/Section 7 | Spotted Executioner 20566 | -3/Section 7 | Lost 3 parts (2n1u) 20593 | -3/Section 7 | Build established: Alien-Mutant 20598 | -3/Section 7 | Spotted Executioner 20598 | -3/Section 7 | Spotted Executioner 20615 | -3/Section 7 | Activated Sigix Exoskeleton 20615 | -3/Section 7 | Received instructions from Sigix Warrior 20623 | -3/Section 7 | Allies destroyed Executioner 20628 | -3/Section 7 | Allies destroyed Executioner 20634 | -3/Section 7 | Lost 3 parts (3u) 20650 | -3/Section 7 | Found Prototype Processor 20650 | -3/Section 7 | Identified Exp. Targeting Computer 20661 | -3/Section 7 | Found Prototype Processor 20661 | -3/Section 7 | Identified Exp. Core Analyzer 20688 | -3/Section 7 | Spotted Striker 20689 | -3/Section 7 | Spotted Striker 20706 | -3/Section 7 | Allies destroyed Striker 20712 | -3/Section 7 | Destroyed Striker 20824 | -3/Section 7 | Destroyed 14 combat bots 20842 | -3/Section 7 | Spotted Striker 20844 | -3/Section 7 | Sigix Exoskeleton integrity reduced to 80% 20857 | -3/Section 7 | Allies destroyed Investigator 20865 | -3/Section 7 | Allies destroyed Striker 20916 | -3/Section 7 | Destroyed 8 combat bots 20924 | -3/Section 7 | Build established: Scavenger-Mutant 20991 | -3/Section 7 | Sigix Exoskeleton integrity reduced to 60% 21017 | -3/Section 7 | Sigix Exoskeleton integrity reduced to 40% 21024 | -3/Section 7 | System corruption reached 10% 21039 | -3/Section 7 | Sigix Exoskeleton integrity reduced to 20% 21060 | -3/Section 7 | System corruption reached 30% 21096 | -3/Section 7 | Lost 16 parts (2p7n6u1w) 21123 | -3/Section 7 | Spotted Striker 21140 | -3/Section 7 | Core integrity fell below 20% 21147 | -3/Section 7 | Spotted Striker 21156 | -3/Section 7 | Spotted Striker 21164 | -3/Section 7 | Destroyed by Striker with Compact Linear Accelerator Last Messages --------------- 21144_ Helical Railgun destroyed. 21144_ Centrium Light Armor Plating destroyed. 21144_ Critical hit (Burn: +37). 21144_ Sigix Warrior: "Get to the Tor... Destroy them all..." 21144_ Sigix Warrior destroyed. 21145_ M-36 Artificer fits Unknown Energy Gun on Striker. 21145_ Penetrated by Slug. 21145_ Flexi-carbon Leg destroyed. 21145_ Myomer Leg destroyed. 21147_ P-80 Master resets Striker, system corruption cleaned. 21147_ Critical hit (Burn: +37). 21148_ Slug penetrates Thrusters. 21148_ Penetrated by Slug. 21148_ Flexi-carbon Leg destroyed. 21148_ M-36 Artificer repairs G-73 Enforcer. 21149_ Slug penetrates Wing Frame. 21149_ Exp. Optical Array destroyed. 21150_ 5>BXUK/ZTGQM6P2